fUSD/lending_fUSD_20250125
["ID","MTS","AMOUNT","RATE_DAILY","PERIOD"]
[350290323,1737772238048,-500.0,0.00016438,2]
[350290325,1737772238057,-500.0,0.00016438,2]
[350290327,1737772238066,-500.0,0.00016438,2]
[350290329,1737772238075,-500.0,0.00016438,2]
[350290331,1737772238084,-1616.37,0.00016438,2]
[350290333,1737772238094,-500.0,0.00016438,2]
[350290335,1737772238103,-823.7,0.00016438,2]
[350290337,1737772238112,-500.0,0.00016438,2]
[350290339,1737772238121,-500.0,0.00016438,2]
[350290341,1737772238131,-500.0,0.00016438,2]
[350290343,1737772238140,-500.0,0.00016438,2]
[350290345,1737772238149,-500.0,0.00016438,2]
[350290347,1737772238158,-500.0,0.00016438,2]
[350290349,1737772238167,-500.0,0.00016438,2]
[350290351,1737772238176,-500.0,0.00016438,2]
[350290353,1737772238185,-500.0,0.00016438,2]
[350290355,1737772238195,-508.48684877,0.00016438,2]
[350290357,1737772238204,-594.7,0.00016438,2]
[350290359,1737772238213,-500.0,0.00016438,2]
[350290361,1737772238223,-501.84983309,0.00016438,2]
[350290363,1737772238232,-500.0,0.00016438,2]
[350290365,1737772238242,-500.0,0.00016438,2]
[350290367,1737772238252,-500.25919541,0.00016438,2]
[350290370,1737772238261,-500.0,0.00016438,2]
[350290371,1737772238270,-500.0,0.00016438,2]
[350290373,1737772238279,-500.0,0.00016438,2]
[350290375,1737772238289,-505.56904903,0.00016438,2]
[350290377,1737772238299,-500.0,0.00016438,2]
[350290379,1737772238308,-500.0,0.00016438,2]
[350290381,1737772238317,-467.25682546,0.00016438,2]
[350290383,1737772238327,-500.0,0.00016438,2]
[350290385,1737772238336,-1870.13,0.00016438,2]
[350290387,1737772238345,-2514.03,0.000165,2]
[350290389,1737772238355,-530.78771408,0.00016575,2]
[350290391,1737772238364,-761.15,0.00016575,2]
[350290393,1737772238373,-500.0,0.00016575,2]
[350290395,1737772238383,-861.0,0.00016575,2]
[350290397,1737772238392,-500.0,0.00016575,2]
[350290399,1737772238401,-500.0,0.00016575,2]
[350290401,1737772238411,-604.87,0.00016575,2]
[350290403,1737772238420,-603.65,0.00016575,2]
[350290405,1737772238430,-515.15,0.00016575,2]
[350290407,1737772238439,-192.49332827,0.00016575,2]
[350290409,1737772238448,-500.0,0.00016575,2]
[350290411,1737772238457,-783.48,0.00016575,2]
[350290414,1737772238467,-500.0,0.00016575,2]
[350290415,1737772238477,-500.0,0.00016575,2]
[350290418,1737772238486,-544.27,0.00016575,2]
[350290419,1737772238496,-500.0,0.00016575,2]
[350290422,1737772238505,-500.0,0.00016575,2]
[350290423,1737772238514,-1254.97,0.00016575,2]
[350290426,1737772238524,-500.0,0.00016575,2]
[350290428,1737772238533,-500.0,0.00016575,2]
[350290430,1737772238542,-500.0,0.00016575,2]
[350290431,1737772238551,-500.0,0.00016575,2]
[350290433,1737772238561,-500.0,0.00016575,2]
[350290435,1737772238570,-500.0,0.00016575,2]
[350290437,1737772238579,-1616.37,0.00016575,2]
[350290439,1737772238588,-823.7,0.00016575,2]
[350290441,1737772238598,-500.0,0.00016575,2]
[350290443,1737772238607,-500.0,0.00016575,2]
[350290445,1737772238617,-585.65474269,0.00016575,2]
[350290447,1737772238626,-500.0,0.00016575,2]
[350290449,1737772238635,-500.0,0.00016575,2]
[350290451,1737772238644,-500.0,0.00016575,2]
[350290453,1737772238653,-500.0,0.00016575,2]
[350290455,1737772238662,-520.06544238,0.00016575,2]
[350290457,1737772238672,-500.0,0.00016575,2]
[350290460,1737772238686,-594.7,0.00016575,2]
[350290462,1737772238695,-500.0,0.00016575,2]
[350290464,1737772238704,-509.88906893,0.00016575,2]
[350290466,1737772238713,-518.9858166,0.00016575,2]
[350290468,1737772238723,-500.0,0.00016575,2]
[350290470,1737772238734,-474.62775508,0.00016575,2]
[350290472,1737772238743,-500.0,0.00016575,2]
[350290473,1737772238752,-151.94228016,0.00016575,2]
[350290475,1737772238761,-500.0,0.00016575,2]
[350290477,1737772238771,-761.15,0.00016712,2]
[350290479,1737772238780,-500.0,0.00016712,2]
[350290481,1737772238789,-861.0,0.00016712,2]
[350290483,1737772238799,-500.0,0.00016712,2]
[350290485,1737772238810,-500.0,0.00016712,2]
[350290487,1737772238820,-604.87,0.00016712,2]
[350290489,1737772238829,-603.65,0.00016712,2]
[350290491,1737772238837,-515.15,0.00016712,2]
[350290493,1737772238847,-614.75,0.00016712,2]
[350290495,1737772238856,-783.48,0.00016712,2]
[350290497,1737772238865,-500.0,0.00016712,2]
[350290499,1737772238875,-500.0,0.00016712,2]
[350290501,1737772238885,-544.27,0.00016712,2]
[350290503,1737772238895,-500.0,0.00016712,2]
[350290505,1737772238904,-451.2096587,0.00016712,2]
[350290507,1737772238913,-1254.97,0.00016712,2]
[350290509,1737772238922,-275.72477516,0.00016712,2]
[350290511,1737772238931,-500.0,0.00016712,2]
[350290513,1737772238940,-500.0,0.00016712,2]
[350290515,1737772238955,-500.0,0.00016712,2]
[350290517,1737772238964,-500.0,0.00016712,2]
[350290520,1737772238973,-500.0,0.00016712,2]
[350290521,1737772238982,-1616.37,0.00016712,2]
[350290524,1737772238992,-823.7,0.00016712,2]
[350290525,1737772239001,-516.57235877,0.00016712,2]
[350290528,1737772239010,-500.0,0.00016712,2]
[350290530,1737772239019,-500.0,0.00016712,2]
[350290531,1737772239028,-500.0,0.00016712,2]
[350290534,1737772239038,-500.0,0.00016712,2]
[350290536,1737772239047,-500.0,0.00016712,2]
[350290537,1737772239056,-326.06882664,0.00016712,2]
[350290540,1737772239066,-594.7,0.00016712,2]
[350290542,1737772239075,-500.0,0.00016712,2]
[350290544,1737772239085,-529.33105806,0.00016712,2]
[350290546,1737772239094,-500.0,0.00016712,2]
[350290547,1737772239103,-488.01995021,0.00016712,2]
[350290549,1737772239112,-250.0,0.000168,2]
[350290551,1737772239121,-201.57,0.00016813,2]
[350290553,1737772239131,-761.15,0.00016849,2]
[350290556,1737772239141,-500.0,0.00016849,2]
[350290558,1737772239152,-861.0,0.00016849,2]
[350290560,1737772239162,-500.0,0.00016849,2]
[350290562,1737772239171,-566.74269286,0.00016849,2]
[350290564,1737772239181,-604.87,0.00016849,2]
[350290566,1737772239190,-603.65,0.00016849,2]
[350290568,1737772239199,-515.15,0.00016849,2]
[350290570,1737772239208,-783.48,0.00016849,2]
[350290572,1737772239217,-308.56809929,0.00016849,2]
[350290573,1737772239226,-500.0,0.00016849,2]
[350290576,1737772239237,-544.27,0.00016849,2]
[350290577,1737772239246,-500.0,0.00016849,2]
[350290579,1737772239255,-1254.97,0.00016849,2]
[350290581,1737772239264,-500.0,0.00016849,2]
[350290584,1737772239275,-158.35901064,0.00016849,2]
[350290586,1737772239284,-500.0,0.00016849,2]
[350290588,1737772239294,-500.0,0.00016849,2]
[350290590,1737772239303,-500.0,0.00016849,2]
[350290592,1737772239313,-1616.37,0.00016849,2]
[350290594,1737772239322,-823.7,0.00016849,2]
[350290596,1737772239332,-500.0,0.00016849,2]
[350290598,1737772239341,-500.0,0.00016849,2]
[350290600,1737772239350,-500.0,0.00016849,2]
[350290602,1737772239359,-209.85930363,0.00016849,2]
[350290604,1737772239368,-500.0,0.00016849,2]
[350290606,1737772239378,-594.7,0.00016849,2]
[350290608,1737772239387,-500.0,0.00016849,2]
[350290610,1737772239396,-569.3781945,0.00016849,2]
[350290612,1737772239406,-987.46621842,0.00016899,2]
[350290614,1737772239415,-260.16055585,0.000169,2]
[350290616,1737772239424,-761.15,0.00016986,2]
[350290619,1737772239435,-500.0,0.00016986,2]
[350290622,1737772239456,-861.0,0.00016986,2]
[350290624,1737772239466,-500.0,0.00016986,2]
[350290625,1737772239476,-604.87,0.00016986,2]
[350290627,1737772239486,-603.65,0.00016986,2]
[350290629,1737772239496,-515.15,0.00016986,2]
[350290631,1737772239508,-783.48,0.00016986,2]
[350290633,1737772239518,-500.0,0.00016986,2]
[350290635,1737772239527,-544.27,0.00016986,2]
[350290637,1737772239537,-500.0,0.00016986,2]
[350290639,1737772239548,-1254.97,0.00016986,2]
[350290641,1737772239557,-500.0,0.00016986,2]
[350290643,1737772239566,-500.0,0.00016986,2]
[350290645,1737772239576,-234.95271393,0.00016986,2]
[350290647,1737772239585,-500.0,0.00016986,2]
[350290649,1737772239594,-1616.37,0.00016986,2]
[350290651,1737772239604,-823.7,0.00016986,2]
[350290653,1737772239613,-500.0,0.00016986,2]
[350290655,1737772239623,-500.0,0.00016986,2]
[350290657,1737772239632,-500.0,0.00016986,2]
[350290659,1737772239641,-500.0,0.00016986,2]
[350290661,1737772239651,-594.7,0.00016986,2]
[350290663,1737772239661,-496.98381211,0.00016986,2]
[350290665,1737772239670,-260.16055571,0.00017072,2]
[350290667,1737772239679,-761.15,0.00017123,2]
[350290669,1737772239689,-500.0,0.00017123,2]
[350290671,1737772239699,-861.0,0.00017123,2]
[350290673,1737772239709,-500.0,0.00017123,2]
[350290675,1737772239718,-604.87,0.00017123,2]
[350290677,1737772239728,-603.65,0.00017123,2]
[350290679,1737772239741,-515.15,0.00017123,2]
[350290681,1737772239751,-783.48,0.00017123,2]
[350290683,1737772239760,-500.0,0.00017123,2]
[350290685,1737772239769,-544.27,0.00017123,2]
[350290687,1737772239779,-500.0,0.00017123,2]
[350290689,1737772239788,-1254.97,0.00017123,2]
[350290691,1737772239798,-230.07407351,0.00017123,2]
[350290693,1737772239807,-500.0,0.00017123,2]
[350290695,1737772239818,-500.0,0.00017123,2]
[350290697,1737772239828,-1616.37,0.00017123,2]
[350290699,1737772239837,-823.7,0.00017123,2]
[350290701,1737772239847,-500.0,0.00017123,2]
[350290703,1737772239856,-456.30488824,0.00017123,2]
[350290705,1737772239865,-500.0,0.00017123,2]
[350290707,1737772239874,-500.0,0.00017123,2]
[350290709,1737772239884,-594.7,0.00017123,2]
[350290711,1737772239893,-260.16055571,0.00017245,2]
[350290713,1737772239903,-761.15,0.0001726,2]
[350290715,1737772239912,-500.0,0.0001726,2]
[350290717,1737772239921,-441.75012138,0.0001726,2]
[350290718,1737772239930,-861.0,0.0001726,2]
[350290719,1737772239941,-604.87,0.0001726,2]
[350290720,1737772239950,-603.65,0.0001726,2]
[350290721,1737772239959,-515.15,0.0001726,2]
[350290722,1737772239968,-783.48,0.0001726,2]
[350290723,1737772239978,-337.24929164,0.0001726,2]
[350290724,1737772239987,-544.27,0.0001726,2]
[350290725,1737772239996,-500.0,0.0001726,2]
[350290726,1737772240005,-1254.97,0.0001726,2]
[350290727,1737772240015,-500.0,0.0001726,2]
[350290728,1737772240024,-500.0,0.0001726,2]
[350290729,1737772240043,-1616.37,0.0001726,2]
[350290730,1737772240052,-823.7,0.0001726,2]
[350290731,1737772240061,-500.0,0.0001726,2]
[350290732,1737772240070,-500.0,0.0001726,2]
[350290733,1737772240079,-397.21259959,0.0001726,2]
[350290734,1737772240088,-594.7,0.0001726,2]
[350290735,1737772240096,-761.15,0.00017397,2]
[350290736,1737772240105,-500.0,0.00017397,2]
[350290737,1737772240114,-861.0,0.00017397,2]
[350290738,1737772240123,-604.87,0.00017397,2]
[350290739,1737772240132,-603.65,0.00017397,2]
[350290740,1737772240141,-515.15,0.00017397,2]
[350290741,1737772240150,-783.48,0.00017397,2]
[350290742,1737772240159,-544.27,0.00017397,2]
[350290743,1737772240168,-500.0,0.00017397,2]
[350290744,1737772240178,-1254.97,0.00017397,2]
[350290745,1737772240187,-500.0,0.00017397,2]
[350290746,1737772240196,-500.0,0.00017397,2]
[350290747,1737772240207,-1616.37,0.00017397,2]
[350290748,1737772240216,-823.7,0.00017397,2]
[350290749,1737772240225,-500.0,0.00017397,2]
[350290750,1737772240235,-500.0,0.00017397,2]
[350290751,1737772240244,-594.7,0.00017397,2]
[350290752,1737772240254,-260.16055571,0.00017417,2]
[350290753,1737772240262,-761.15,0.00017534,2]
[350290754,1737772240271,-500.0,0.00017534,2]
[350290755,1737772240280,-861.0,0.00017534,2]
[350290756,1737772240289,-604.87,0.00017534,2]
[350290757,1737772240300,-603.65,0.00017534,2]
[350290758,1737772240310,-515.15,0.00017534,2]
[350290762,1737772240445,-783.48,0.00017534,2]
[350290763,1737772240455,-544.27,0.00017534,2]
[350290764,1737772240467,-500.0,0.00017534,2]
[350290765,1737772240476,-1254.97,0.00017534,2]
[350290766,1737772240487,-500.0,0.00017534,2]
[350290767,1737772240497,-500.0,0.00017534,2]
[350290768,1737772240506,-1616.37,0.00017534,2]
[350290769,1737772240515,-823.7,0.00017534,2]
[350290770,1737772240524,-500.0,0.00017534,2]
[350290771,1737772240535,-500.0,0.00017534,2]
[350290772,1737772240544,-594.7,0.00017534,2]
[350290773,1737772240554,-260.16055571,0.0001759,2]
[350290774,1737772240564,-761.15,0.00017671,2]
[350290775,1737772240574,-500.0,0.00017671,2]
[350290776,1737772240583,-861.0,0.00017671,2]
[350290777,1737772240593,-604.87,0.00017671,2]
[350290778,1737772240606,-603.65,0.00017671,2]
[350290779,1737772240615,-515.15,0.00017671,2]
[350290780,1737772240624,-783.48,0.00017671,2]
[350290781,1737772240634,-544.27,0.00017671,2]
[350290782,1737772240644,-607.19942296,0.00017671,2]
[350290783,1737772240653,-1254.97,0.00017671,2]
[350290784,1737772240663,-500.0,0.00017671,2]
[350290785,1737772240673,-500.0,0.00017671,2]
[350290786,1737772240683,-1616.37,0.00017671,2]
[350290787,1737772240693,-823.7,0.00017671,2]
[350290788,1737772240703,-212.51277576,0.00017671,2]
[350290789,1737772240712,-500.0,0.00017671,2]
[350290790,1737772240721,-594.7,0.00017671,2]
[350290791,1737772240734,-260.16055571,0.00017762,2]
[350290792,1737772240743,-761.15,0.00017808,2]
[350290793,1737772240753,-500.0,0.00017808,2]
[350290794,1737772240763,-861.0,0.00017808,2]
[350290795,1737772240773,-604.87,0.00017808,2]
[350290796,1737772240783,-603.65,0.00017808,2]
[350290797,1737772240792,-515.15,0.00017808,2]
[350290798,1737772240802,-783.48,0.00017808,2]
[350290799,1737772240813,-544.27,0.00017808,2]
[350290800,1737772240823,-1254.97,0.00017808,2]
[350290801,1737772240833,-317.15,0.00017808,2]
[350290802,1737772240842,-500.0,0.00017808,2]
[350290803,1737772240851,-1616.37,0.00017808,2]
[350290804,1737772240861,-823.7,0.00017808,2]
[350290805,1737772240870,-500.0,0.00017808,2]
[350290806,1737772240880,-594.7,0.00017808,2]
[350290807,1737772240890,-260.16055571,0.00017934,2]
[350290808,1737772240899,-761.15,0.00017945,2]
[350290809,1737772240909,-500.0,0.00017945,2]
[350290810,1737772240918,-861.0,0.00017945,2]
[350290811,1737772240928,-604.87,0.00017945,2]
[350290812,1737772240937,-603.65,0.00017945,2]
[350290813,1737772240946,-515.15,0.00017945,2]
[350290814,1737772240956,-783.48,0.00017945,2]
[350290815,1737772240965,-544.27,0.00017945,2]
[350290816,1737772240975,-1254.97,0.00017945,2]
[350290817,1737772240984,-500.0,0.00017945,2]
[350290818,1737772240993,-1616.37,0.00017945,2]
[350290819,1737772241003,-823.7,0.00017945,2]
[350290820,1737772241012,-282.48471061,0.00017945,2]
[350290821,1737772241021,-594.7,0.00017945,2]
[350290822,1737772241030,-7452.11817807,0.00018,3]
[350290823,1737772241040,-1228.74980549,0.00018,2]
[350290824,1737772241051,-727.17098518,0.00018,2]
[350290825,1737772241060,-5615.36403996,0.00018,2]
[350290826,1737772241069,-2514.03,0.00018,2]
[350290827,1737772241078,-163.031492,0.00018079,2]
[350290828,1737772241087,-154.729177,0.00018079,2]
[350290829,1737772241096,-154.729178,0.00018079,2]
[350290830,1737772241105,-160.814046,0.00018079,2]
[350290831,1737772241115,-160.165086,0.00018079,2]
[350290832,1737772241124,-151.567143,0.00018079,2]
[350290833,1737772241133,-159.08072,0.00018079,2]
[350290834,1737772241142,-162.020942,0.00018079,2]
[350290835,1737772241151,-157.723506,0.00018079,2]
[350290836,1737772241160,-151.567144,0.00018079,2]
[350290837,1737772241170,-761.15,0.00018082,2]
[350290838,1737772241179,-500.0,0.00018082,2]
[350290839,1737772241188,-861.0,0.00018082,2]
[350290840,1737772241198,-604.87,0.00018082,2]
[350290841,1737772241207,-603.65,0.00018082,2]
[350290842,1737772241216,-515.15,0.00018082,2]
[350290843,1737772241227,-783.48,0.00018082,2]
[350290844,1737772241236,-544.27,0.00018082,2]
[350290845,1737772241245,-1254.97,0.00018082,2]
[350290846,1737772241255,-500.0,0.00018082,2]
[350290847,1737772241264,-1616.37,0.00018082,2]
[350290848,1737772241273,-823.7,0.00018082,2]
[350290849,1737772241282,-594.7,0.00018082,2]
[350290850,1737772241291,-173.87,0.00018082,2]
[350290851,1737772241301,-516.79,0.00018082,2]
[350290852,1737772241310,-250.0,0.00018083,2]
[350290853,1737772241319,-260.16055571,0.00018107,2]
[350290854,1737772241328,-500.0,0.00018164,2]
[350290855,1737772241338,-761.15,0.00018219,2]
[350290856,1737772241347,-500.0,0.00018219,2]
[350290857,1737772241356,-861.0,0.00018219,2]
[350290858,1737772241365,-604.87,0.00018219,2]
[350290859,1737772241374,-603.65,0.00018219,2]
[350290860,1737772241384,-515.15,0.00018219,2]
[350290861,1737772241394,-783.48,0.00018219,2]
[350290862,1737772241403,-544.27,0.00018219,2]
[350290863,1737772241411,-1254.97,0.00018219,2]
[350290864,1737772241420,-500.0,0.00018219,2]
[350290865,1737772241429,-1616.37,0.00018219,2]
[350290866,1737772241439,-823.7,0.00018219,2]
[350290867,1737772241447,-594.7,0.00018219,2]
[350290868,1737772241457,-250.0,0.00018245,2]
[350290869,1737772241466,-260.16055571,0.00018279,2]
[350290870,1737772241475,-150.75,0.000183,2]
[350290871,1737772241484,-150.75,0.000183,2]
[350290872,1737772241494,-150.75,0.000183,2]
[350290873,1737772241504,-150.75,0.000183,2]
[350290874,1737772241512,-150.75,0.000183,2]
[350290875,1737772241522,-150.75,0.000183,2]
[350290876,1737772241531,-150.75,0.000183,2]
[350290877,1737772241540,-150.75,0.000183,2]
[350290878,1737772241550,-150.75,0.000183,2]
[350290879,1737772241560,-150.75,0.000183,2]
[350290880,1737772241569,-150.75,0.000183,2]
[350290881,1737772241579,-150.75,0.000183,2]
[350290882,1737772241588,-150.75,0.000183,2]
[350290883,1737772241598,-150.75,0.000183,2]
[350290884,1737772241607,-150.75,0.000183,2]
[350290885,1737772241616,-150.75,0.000183,2]
[350290886,1737772241625,-150.75,0.000183,2]
[350290887,1737772241637,-150.75,0.000183,2]
[350290888,1737772241645,-150.75,0.000183,2]
[350290889,1737772241654,-150.75,0.000183,2]
[350290890,1737772241663,-150.75,0.000183,2]
[350290891,1737772241672,-150.75,0.000183,2]
[350290892,1737772241681,-150.75,0.000183,2]
[350290893,1737772241689,-150.75,0.000183,2]
[350290894,1737772241698,-150.75,0.000183,2]
[350290895,1737772241707,-150.75,0.000183,2]
[350290896,1737772241717,-150.75,0.000183,2]
[350290897,1737772241726,-150.75,0.000183,2]
[350290898,1737772241738,-150.75,0.000183,2]
[350290899,1737772241748,-150.75,0.000183,2]
[350290900,1737772241757,-150.75,0.000183,2]
[350290901,1737772241766,-150.75,0.000183,2]
[350290902,1737772241778,-150.75,0.000183,2]
[350290903,1737772241790,-150.75,0.000183,2]
[350290904,1737772241800,-150.75,0.000183,2]
[350290905,1737772241812,-150.75,0.000183,2]
[350290906,1737772241822,-150.75,0.000183,2]
[350290907,1737772241832,-150.75,0.000183,2]
[350290908,1737772241842,-150.75,0.000183,2]
[350290909,1737772241853,-150.75,0.000183,2]
[350290910,1737772241863,-150.75,0.000183,2]
[350290911,1737772241873,-150.75,0.000183,2]
[350290912,1737772241882,-150.75,0.000183,2]
[350290913,1737772241892,-150.75,0.000183,2]
[350290914,1737772241902,-150.75,0.000183,2]
[350290915,1737772241912,-150.75,0.000183,2]
[350290916,1737772241928,-150.75,0.000183,2]
[350290917,1737772241937,-150.75,0.000183,2]
[350290918,1737772241947,-150.75,0.000183,2]
[350290919,1737772241956,-150.75,0.000183,2]
[350290920,1737772241966,-150.75,0.000183,2]
[350290921,1737772241975,-150.75,0.000183,2]
[350290922,1737772241984,-150.75,0.000183,2]
[350290923,1737772241994,-150.75,0.000183,2]
[350290924,1737772242004,-150.75,0.000183,2]
[350290925,1737772242015,-150.75,0.000183,2]
[350290926,1737772242025,-150.75,0.000183,2]
[350290927,1737772242035,-150.75,0.000183,2]
[350290928,1737772242045,-761.15,0.00018356,2]
[350290929,1737772242054,-289.52150112,0.00018356,2]
[350290930,1737772242063,-861.0,0.00018356,2]
[350290931,1737772242072,-604.87,0.00018356,2]
[350290932,1737772242081,-603.65,0.00018356,2]
[350290933,1737772242090,-515.15,0.00018356,2]
[350290934,1737772242099,-783.48,0.00018356,2]
[350290935,1737772242108,-544.27,0.00018356,2]
[350290936,1737772242117,-1254.97,0.00018356,2]
[350290937,1737772242127,-500.0,0.00018356,2]
[350290938,1737772242136,-1616.37,0.00018356,2]
[350290939,1737772242145,-823.7,0.00018356,2]
[350290940,1737772242155,-594.7,0.00018356,2]
[350290941,1737772242165,-260.16055571,0.00018452,2]
[350290942,1737772242174,-151.567143,0.0001849,2]
[350290943,1737772242184,-157.723506,0.0001849,2]
[350290944,1737772242193,-761.15,0.00018493,2]
[350290945,1737772242202,-861.0,0.00018493,2]
[350290946,1737772242214,-604.87,0.00018493,2]
[350290947,1737772242226,-603.65,0.00018493,2]
[350290948,1737772242236,-515.15,0.00018493,2]
[350290949,1737772242247,-783.48,0.00018493,2]
[350290950,1737772242259,-544.27,0.00018493,2]
[350290951,1737772242269,-1254.97,0.00018493,2]
[350290952,1737772242279,-500.0,0.00018493,2]
[350290953,1737772242289,-1616.37,0.00018493,2]
[350290954,1737772242298,-823.7,0.00018493,2]
[350290955,1737772242307,-594.7,0.00018493,2]
[350290956,1737772242316,-152.64,0.00018579,2]
[350290959,1737772242326,-151.567143,0.00018603,2]
[350290961,1737772242335,-157.723506,0.00018603,2]
[350290963,1737772242345,-260.16055571,0.00018624,2]
[350290965,1737772242354,-761.15,0.0001863,2]
[350290967,1737772242363,-861.0,0.0001863,2]
[350290969,1737772242372,-604.87,0.0001863,2]
[350290971,1737772242382,-603.65,0.0001863,2]
[350290973,1737772242391,-515.15,0.0001863,2]
[350290974,1737772242401,-783.48,0.0001863,2]
[350290976,1737772242411,-544.27,0.0001863,2]
[350290978,1737772242421,-1254.97,0.0001863,2]
[350290979,1737772242430,-500.0,0.0001863,2]
[350290980,1737772242439,-1616.37,0.0001863,2]
[350290981,1737772242448,-823.7,0.0001863,2]
[350290982,1737772242458,-594.7,0.0001863,2]
[350290983,1737772242467,-3971.83524313,0.00018656,2]
[350290984,1737772242481,-892.83411436,0.00018674,2]
[350290985,1737772242496,-151.567143,0.00018678,2]
[350290986,1737772242507,-157.723506,0.00018678,2]
[350290987,1737772242516,-151.567143,0.00018692,2]
[350290988,1737772242525,-157.723506,0.00018693,2]
[350290989,1737772242534,-160.814046,0.00018699,2]
[350290990,1737772242544,-151.567143,0.00018699,2]
[350290991,1737772242554,-157.723506,0.00018736,2]
[350290992,1737772242563,-151.567143,0.00018741,2]
[350290993,1737772242572,-761.15,0.00018767,2]
[350290994,1737772242582,-861.0,0.00018767,2]
[350290995,1737772242591,-604.87,0.00018767,2]
[350290996,1737772242601,-603.65,0.00018767,2]
[350290997,1737772242610,-515.15,0.00018767,2]
[350290998,1737772242620,-783.48,0.00018767,2]
[350290999,1737772242629,-544.27,0.00018767,2]
[350291000,1737772242638,-1254.97,0.00018767,2]
[350291001,1737772242648,-500.0,0.00018767,2]
[350291002,1737772242657,-1616.37,0.00018767,2]
[350291003,1737772242667,-823.7,0.00018767,2]
[350291004,1737772242677,-594.7,0.00018767,2]
[350291005,1737772242686,-154.729177,0.00018772,2]
[350291006,1737772242696,-154.729178,0.00018772,2]
[350291007,1737772242705,-160.165086,0.00018772,2]
[350291008,1737772242714,-157.723506,0.00018772,2]
[350291009,1737772242723,-260.16055571,0.00018797,2]
[350291010,1737772242735,-787.18,0.00018814,2]
[350291011,1737772242745,-151.567143,0.00018815,2]
[350291012,1737772242754,-157.723506,0.00018829,2]
[350291013,1737772242764,-151.567143,0.00018877,2]
[350291014,1737772242773,-761.15,0.00018904,2]
[350291015,1737772242783,-861.0,0.00018904,2]
[350291016,1737772242793,-604.87,0.00018904,2]
[350291017,1737772242803,-603.65,0.00018904,2]
[350291018,1737772242815,-515.15,0.00018904,2]
[350291019,1737772242825,-783.48,0.00018904,2]
[350291020,1737772242834,-544.27,0.00018904,2]
[350291022,1737772242844,-1254.97,0.00018904,2]
[350291024,1737772242853,-454.90378437,0.00018904,2]
[350291025,1737772242862,-1616.37,0.00018904,2]
[350291026,1737772242872,-823.7,0.00018904,2]
[350291027,1737772242881,-594.7,0.00018904,2]
[350291028,1737772242890,-157.723506,0.00018909,2]
[350291029,1737772242899,-151.567143,0.00018952,2]
[350291030,1737772242909,-163.031492,0.00018966,2]
[350291031,1737772242919,-160.814046,0.00018966,2]
[350291032,1737772242928,-157.723506,0.00018966,2]
[350291034,1737772242937,-260.16055571,0.00018969,2]
[350291036,1737772242946,-173.87,0.00018974,2]
[350291038,1737772242955,-151.567143,0.00019014,2]
[350291040,1737772242964,-761.15,0.00019041,2]